fUSD/lending_fUSD_20250420
["ID","MTS","AMOUNT","RATE_DAILY","PERIOD"]
[358421295,1745115037695,-848.6840014,0.000198,2]
[358421296,1745115037715,-3653.83319092,0.000198,2]
[358421297,1745115037742,-432.37999784,0.000198,2]
[358421298,1745115037753,-97670.78785579,0.000198,2]
[358421299,1745115037763,-212.977,0.000198,2]
[358421300,1745115037772,-610.6501,0.000198,2]
[358421301,1745115037782,-500.0,0.00019873,2]
[358421302,1745115037793,-1000.0,0.0001989,2]
[358421303,1745115037802,-795.0,0.00019899,2]
[358421304,1745115037811,-907.0,0.00019899,2]
[358421305,1745115037821,-1007.03,0.00019899,2]
[358421306,1745115037831,-1282.0,0.00019899,2]
[358421307,1745115037840,-546.0,0.00019899,2]
[358421308,1745115037849,-155.925,0.00019899,2]
[358421309,1745115037858,-500.0,0.00019899,2]
[358421310,1745115037868,-500.0,0.00019899,2]
[358421311,1745115037876,-500.0,0.000199,2]
[358421312,1745115037886,-1837.3798,0.000199,2]
[358421313,1745115037896,-25376.7036,0.000199,2]
[358421314,1745115037905,-630.3741,0.000199,2]
[358421315,1745115037915,-3038.4809,0.000199,2]
[358421316,1745115037924,-573.8734,0.000199,2]
[358421317,1745115037937,-303.157,0.000199,2]
[358421318,1745115037946,-664.5333,0.000199,2]
[358421319,1745115037956,-1918.2595,0.000199,2]
[358421320,1745115037967,-522.34,0.000199,2]
[358421321,1745115037977,-680.89234421,0.000199,2]
[358421322,1745115037991,-313.27325579,0.000199,2]
[358421323,1745115038001,-6181.3861,0.000199,2]
[358421324,1745115038012,-1852.9844,0.000199,2]
[358421325,1745115038022,-32194.2832,0.000199,2]
[358421326,1745115038031,-2301.2886,0.000199,2]
[358421327,1745115038042,-861.1465,0.000199,2]
[358421328,1745115038051,-52890.9795,0.000199,2]
[358421330,1745115038061,-163.743074,0.000199,2]
[358421331,1745115038070,-301.49695244,0.000199,2]
[358421332,1745115038080,-293.37390692,0.00019985,2]
[358421333,1745115038091,-500.0,0.00019985,2]
[358421334,1745115038102,-2494.6040172,0.00019986,2]
[358421335,1745115038113,-10286.1719971,0.00019986,2]
[358421336,1745115038124,-2156.611051,0.00019986,2]
[358421337,1745115038135,-500.0,0.00019989,2]
[358421338,1745115038146,-2053.0,0.0001999,2]
[358421339,1745115038157,-170.71675583,0.0001999,2]
[358421340,1745115038167,-187.78,0.00019994,2]
[358421341,1745115038176,-314.61084003,0.00019999,2]
[358421342,1745115038186,-154.03490572,0.00019999,2]
[358421343,1745115038196,-247.16430434,0.0002,2]
[358421344,1745115038211,-60026.67552857,0.0002,2]
[358421345,1745115038222,-9104.112065,0.0002,2]
[358421346,1745115038231,-1000.0,0.0002,2]
[358421347,1745115038241,-1153416.65248625,0.0002,2]
[358421348,1745115038251,-71657.99062916,0.0002,2]
[358421349,1745115038261,-1804.6,0.0002,2]
[358421350,1745115038271,-153901.1723384,0.0002,2]
[358421351,1745115038280,-2529854.99037741,0.0002,2]
[358421352,1745115038409,-340569.66230341,0.0002,2]
[358421353,1745115038447,-864.83947988,0.000197,2]
[358421354,1745115038456,-92.8605201,0.0002,2]
[358421355,1745115038467,-3502.41,0.0002,2]
[358421356,1745115038478,-1372.08116175,0.0002,2]
[358421357,1745115038488,-10875.88,0.0002,2]
[358421358,1745115038499,-363.240668,0.0002,2]
[358421359,1745115039944,-550.0,0.0002,2]
[358421360,1745115040049,-484.87,0.0002,2]
[358421362,1745115045557,-378.47279997,0.00019722,2]
[358421366,1745115100079,153.35,0.00041095,30]
[358421367,1745115195177,305.04,0.00043323,30]
[358421368,1745115239268,214.02,0.00027425,30]
[358421369,1745115294541,212.0,0.00048404,120]
[358421370,1745115325882,312.16,0.00043835,30]
[358421371,1745115343232,1013.22632993,0.00048404,30]
[358421374,1745115380085,856.668,0.00048404,30]
[358421384,1745115462356,187.78,0.00015695,2]
[358421386,1745115545780,1000.0,0.00048404,30]
[358421387,1745115580590,452.008,0.00042489,64]
[358421388,1745115606684,3759.67,0.00019,2]
[358421389,1745115608380,3759.67,0.00019,2]
[358421390,1745115610084,3759.67,0.00019,2]
[358421391,1745115611747,3759.67,0.00019,2]
[358421393,1745115705950,175.94517304,0.00048401,30]
[358421394,1745115812494,450.0,0.00017,2]
[358421395,1745115813589,500.0,0.00019,2]
[358421397,1745115912110,150.28595053,0.00048401,30]
[358421398,1745115928273,6445.27061408,0.00048401,30]
[358421399,1745115956628,4605.62288447,0.00048401,30]
[358421401,1745116007595,1610.8,0.00017036,2]
[358421402,1745116007791,1610.8,0.00019299,2]
[358421403,1745116027134,-193.71,0.0001945,2]
[358421404,1745116027157,-345.73,0.00019561,2]
[358421405,1745116027178,-250.0,0.0001957,2]
[358421406,1745116027201,-1000.0,0.00019583,2]
[358421407,1745116027223,-187.78,0.00019619,2]
[358421408,1745116027248,-300.0,0.00019633,2]
[358421409,1745116027270,-14055.68436646,0.00019634,2]
[358421410,1745116036431,165.28756003,0.00048401,120]
[358421411,1745116037767,214.33499038,0.00015,2]
[358421412,1745116039178,-3559.51152781,0.00019634,2]
[358421414,1745116049421,150.0,0.00019517,7]
[358421415,1745116077853,150.0,0.00041095,120]
[358421416,1745116078087,150.0,0.00042465,120]
[358421417,1745116078330,150.0,0.00043835,120]
[358421418,1745116079594,7433.76064808,0.00048401,120]
[358421419,1745116087723,169.15135109,0.00048401,120]
[358421420,1745116117717,155.66530785,0.00048401,120]
[358421421,1745116119889,157.48890637,0.00028799,120]
[358421422,1745116121734,1521.84517362,0.00048401,30]
[358421423,1745116122823,283.10599551,0.00032,120]
[358421424,1745116127417,3955.01270762,0.0004,30]
[358421425,1745116129658,178.03002089,0.00048401,120]
[358421428,1745116176813,3617.15674299,0.00048401,120]
[358421429,1745116177434,172.86,0.00019054,2]
[358421473,1745116237854,-6284.80410573,0.00019634,2]
[358421474,1745116237864,-500.0,0.00019773,2]
[358421475,1745116237874,-581.34790231,0.0001979,2]
[358421476,1745116237884,-347.0,0.00019799,2]
[358421477,1745116237893,-300.0,0.00019799,2]
[358421478,1745116237902,-300.0,0.00019799,2]
[358421479,1745116237912,-150.0,0.000198,2]
[358421480,1745116237922,-4529.52848102,0.000198,2]
[358421481,1745116238064,-67965.69923629,0.000198,2]
[358421482,1745116238074,-150.0,0.00019845,2]
[358421483,1745116238083,-150.0,0.00019847,2]
[358421484,1745116238092,-150.0,0.00019855,2]
[358421485,1745116238101,-150.0,0.0001986,2]
[358421486,1745116238111,-150.0,0.00019865,2]
[358421487,1745116238120,-150.0,0.00019876,2]
[358421489,1745116238129,-150.0,0.00019877,2]
[358421491,1745116238138,-150.0,0.00019878,2]
[358421492,1745116238148,-313.2732,0.00019886,2]
[358421493,1745116238157,-6181.3861,0.00019886,2]
[358421494,1745116238167,-1852.9844,0.00019886,2]
[358421496,1745116238176,-32194.2832,0.0001989,2]
[358421498,1745116238185,-150.0,0.00019895,2]
[358421499,1745116238195,-150.0,0.00019897,2]
[358421500,1745116238205,-637.5193,0.000199,2]
[358421501,1745116238216,-163.743074,0.000199,2]
[358421502,1745116238226,-5775.4747,0.000199,2]
[358421503,1745116238236,-7621.74395006,0.000199,2]
[358421504,1745116238246,-4065.21339586,0.000199,2]
[358421505,1745116238255,-7405.0825185,0.000199,2]
[358421506,1745116238265,-301.49695244,0.000199,2]
[358421507,1745116238274,-441.28351109,0.000199,2]
[358421508,1745116238283,-150.0,0.00019966,2]
[358421509,1745116238293,-500.0,0.00019973,2]
[358421510,1745116238302,-500.0,0.00019973,2]
[358421511,1745116238314,-377.72894388,0.00019973,2]
[358421512,1745116238324,-500.71248276,0.00019973,2]
[358421514,1745116238333,-155.87118579,0.00019973,2]
[358421516,1745116238344,-151.62469162,0.00019973,2]
[358421517,1745116238354,-452.008,0.00019985,2]
[358421518,1745116238364,-13236.7704917,0.00019986,2]
[358421519,1745116238373,-3836.9160765,0.00019986,2]
[358421520,1745116238382,-1084.1541844,0.00019986,2]
[358421521,1745116238394,-152.0,0.0001999,2]
[358421522,1745116238404,-4052.359,0.0001999,2]
[358421523,1745116238413,-170.71675583,0.0001999,2]
[358421524,1745116238423,-2053.0,0.0001999,2]
[358421525,1745116238432,-500.0,0.00019999,2]
[358421526,1745116238441,-314.61084003,0.00019999,2]
[358421527,1745116238451,-500.0,0.00019999,2]
[358421528,1745116238461,-154.03490572,0.00019999,2]
[358421529,1745116238470,-247.16430434,0.0002,2]
[358421530,1745116238479,-60026.67552857,0.0002,2]
[358421531,1745116238489,-653323.2630954,0.0002,2]
[358421532,1745116238498,-2880720.5952977,0.0002,2]
[358421533,1745116238508,-337605.45346268,0.0002,2]
[358421534,1745116238520,-340569.66230341,0.0002,2]
[358421536,1745116240277,-550.0,0.0002,2]
[358421537,1745116240332,-581.34790231,0.0002,2]
[358421580,1745116456180,1116.91,0.00043203,30]
[358421581,1745116516524,320.59,0.00043203,30]
[358421582,1745116609765,1000.0,0.00019054,2]
[358421585,1745116780725,599.635,0.00042425,64]
[358421586,1745116792890,-200.0,0.00019763,2]
[358421588,1745116855793,270.14279667,0.00048401,120]
[358421589,1745116920947,3900.0,0.00048401,120]
[358421590,1745116982415,150.0,0.00041095,120]
[358421591,1745116982652,150.0,0.00042465,120]
[358421592,1745116982876,150.0,0.00043835,120]
[358421593,1745116996736,187.78,0.00015552,2]
[358421594,1745117034010,150.0,0.00019436,7]
[358421596,1745117093609,1449.72,0.00017454,2]
[358421597,1745117205415,2096.18484385,0.00019251,2]
[358421598,1745117205443,3068.03515615,0.00019251,2]
[358421599,1745117239131,-9448.91308268,0.00019694,2]
[358421600,1745117251124,-14451.08691732,0.00019694,2]
[358421601,1745117251144,-1449.72,0.00019718,2]
[358421602,1745117251166,-150.0,0.00019755,2]
[358421603,1745117251340,-50.0,0.00019763,2]
[358421604,1745117251366,-150.0,0.00019767,2]
[358421605,1745117251386,-250.0,0.00019793,2]
[358421606,1745117251408,-637.5193,0.000198,2]
[358421607,1745117251434,-150.0,0.00019861,2]
[358421608,1745117251457,-155.87118579,0.00019873,2]
[358421609,1745117251477,-16.55633356,0.00019873,2]
[358421610,1745117333023,-172.86,0.00019603,2]
[358421611,1745117333047,-179.83496873,0.00019774,2]
[358421612,1745117333070,-483.44366644,0.00019873,2]
[358421613,1745117333094,-500.71248276,0.00019873,2]
[358421614,1745117333225,-500.0,0.00019873,2]
[358421615,1745117333248,-151.62469162,0.00019873,2]
[358421616,1745117333271,-503.79373034,0.00019873,2]
[358421617,1745117333294,-2301.2886,0.00019886,2]
[358421618,1745117333316,-500.0,0.00019899,2]
[358421619,1745117333339,-399.45687155,0.00019899,2]
[358421620,1745117333362,-850.0,0.00019899,2]
[358421621,1745117333385,-8574.7105,0.000199,2]
[358421622,1745117333409,-3573.2590653,0.000199,2]
[358421623,1745117333432,-5775.4747,0.000199,2]
[358421624,1745117333455,-52890.9795,0.000199,2]
[358421625,1745117333478,-163.743074,0.000199,2]
[358421626,1745117333502,-599.634,0.000199,2]
[358421627,1745117333526,-4065.21339586,0.000199,2]
[358421628,1745117333549,-1933.69913439,0.000199,2]
[358421629,1745117333572,-7405.0825185,0.000199,2]
[358421630,1745117333598,-150.0,0.00019916,2]
[358421631,1745117333621,-500.0,0.00019973,2]
[358421632,1745117333644,-995.6116466,0.00019986,2]
[358421633,1745117333667,-4394.6022711,0.00019986,2]
[358421634,1745117333691,-1598.7820499,0.00019986,2]
[358421635,1745117333714,-152.0,0.0001999,2]
[358421636,1745117333741,-170.71675583,0.0001999,2]
[358421637,1745117333764,-4093.26,0.0001999,2]
[358421638,1745117333788,-320.42,0.0001999,2]
[358421639,1745117333812,-320.42,0.0001999,2]
[358421640,1745117333835,-320.42,0.0001999,2]
[358421641,1745117333859,-320.42,0.0001999,2]
[358421642,1745117333881,-320.42,0.0001999,2]
[358421643,1745117333907,-320.42,0.0001999,2]
[358421644,1745117333930,-320.42,0.0001999,2]
[358421645,1745117333953,-320.42,0.0001999,2]
[358421646,1745117333976,-320.42,0.0001999,2]
[358421647,1745117333999,-320.42,0.0001999,2]
[358421648,1745117334022,-940.625,0.0001999,2]
[358421649,1745117334045,-1328.0,0.0001999,2]
[358421650,1745117334069,-2053.0,0.0001999,2]
[358421651,1745117334093,-888.494,0.0001999,2]
[358421652,1745117334116,-794.0,0.0001999,2]
[358421653,1745117334140,-683.382,0.0001999,2]
[358421654,1745117334163,-576.0,0.0001999,2]
[358421655,1745117334185,-500.0,0.00019999,2]
[358421656,1745117334209,-293.37390692,0.00019999,2]
[358421657,1745117334231,-673.15838074,0.00019999,2]
[358421658,1745117334255,-300.0,0.00019999,2]
[358421659,1745117334278,-154.03490572,0.00019999,2]
[358421660,1745117334433,-188.0,0.00019999,2]
[358421661,1745117334456,-189.12,0.00019999,2]
[358421662,1745117334480,-247.16430434,0.0002,2]
[358421663,1745117334506,-65663.73999735,0.0002,2]
[358421664,1745117334532,-637743.92388201,0.0002,2]
[358421668,1745117431955,-150.8030844,0.000199,2]
[358421669,1745117431964,-603.8024,0.000199,2]
[358421670,1745117431973,-301.49695244,0.000199,2]
[358421671,1745117431983,-1289.13275626,0.000199,2]
[358421672,1745117431992,-2065.40194903,0.000199,2]
[358421701,1745117432573,-434.59805097,0.000199,2]
[358421702,1745117432582,-250.0,0.00019943,2]
[358421703,1745117432593,-159.79142295,0.00019973,2]
[358421704,1745117432606,-377.72894388,0.00019973,2]
[358421705,1745117432616,-300.0,0.00019985,2]
[358421706,1745117432625,-5929.54491573,0.00019986,2]
[358421707,1745117432638,-489.38511936,0.00019986,2]
[358421711,1745117438433,-8304.76998751,0.00019986,2]
[358421713,1745117438443,-1947.66665,0.00019986,2]
[358421715,1745117438452,-1813.6687182,0.00019986,2]
[358421716,1745117438462,-151.07990786,0.00019986,2]
[358421717,1745117438471,-283.34061262,0.0001999,2]
[358421718,1745117438480,-3975.0,0.0001999,2]
[358421719,1745117438489,-152.0,0.0001999,2]
[358421720,1745117438500,-303.76,0.0001999,2]
[358421721,1745117438509,-303.76,0.0001999,2]
[358421722,1745117438518,-303.76,0.0001999,2]
[358421723,1745117438527,-303.76,0.0001999,2]
[358421724,1745117438536,-303.76,0.0001999,2]
[358421725,1745117438646,-303.76,0.0001999,2]
[358421726,1745117438656,-303.76,0.0001999,2]
[358421727,1745117438665,-303.76,0.0001999,2]
[358421728,1745117438675,-303.76,0.0001999,2]
[358421729,1745117438684,-303.76,0.0001999,2]
[358421730,1745117438696,-896.44694691,0.00019999,2]
[358421731,1745117438707,-500.0,0.00019999,2]
[358421732,1745117438717,-672.90622012,0.00019999,2]
[358421733,1745117438727,-254189.70471052,0.0002,2]
[358421734,1745117438737,-1682014.63267229,0.0002,2]
[358421735,1745117438747,-150.0,0.0002,2]
[358421736,1745117438758,-384.0,0.0002,2]
[358421737,1745117438769,-161.63712,0.0002,2]
[358421738,1745117438780,-200.0,0.0002,2]
[358421739,1745117438791,-1989218.86730745,0.0002,2]
[358421740,1745117438803,-340569.66230341,0.0002,2]
[358421801,1745117487167,2006.93,0.00048401,60]
[358421802,1745117621318,450.0,0.00017,2]
[358421803,1745117622386,500.0,0.00019,2]
[358421806,1745117735208,163.23,0.00027425,30]
[358421807,1745117868719,150.0,0.00041095,120]
[358421808,1745117868965,150.0,0.00042465,120]
[358421809,1745117869194,150.0,0.00043835,120]
[358421810,1745117915809,159.0,0.0004,60]
[358421811,1745117981416,359.781,0.00042479,64]
[358421813,1745118088508,2000.0,0.00048401,60]
[358421814,1745118088638,1000.0,0.00019411,2]
[358421815,1745118132859,150.0,0.00019669,7]
[358421816,1745118154632,1304.74,0.00017474,2]
[358421818,1745118238362,2500.0,0.00048401,36]
[358421819,1745118401644,23900.0,0.00019088,2]
[358421821,1745118426107,-1304.74,0.00019737,2]
[358421822,1745118426130,-154.03711879,0.00019786,2]
[358421823,1745118426264,-150.0,0.00019789,2]
[358421824,1745118426285,-150.0,0.00019797,2]
[358421825,1745118426308,-200.0,0.000198,2]
[358421826,1745118426329,-195.13763516,0.000198,2]
[358421827,1745118426350,-150.0,0.00019807,2]
[358421828,1745118426370,-150.0,0.00019868,2]
[358421829,1745118426391,-189.25783037,0.0001988,2]
[358421830,1745118426411,-874.5963,0.00019889,2]
[358421831,1745118426433,-300.0,0.00019899,2]
[358421832,1745118426456,-300.0,0.00019899,2]
[358421833,1745118426479,-3773.5868,0.000199,2]
[358421834,1745118426500,-1000.0,0.000199,2]
[358421835,1745118426520,-3146.3887,0.000199,2]
[358421836,1745118426542,-301.4535,0.000199,2]
[358421837,1745118426565,-291.725,0.000199,2]
[358421838,1745118426586,-150.8030844,0.000199,2]
[358421839,1745118426606,-893.5241,0.000199,2]
[358421840,1745118426628,-201.39237318,0.000199,2]
[358421841,1745118426657,-357.1068654,0.000199,2]
[358421842,1745118426686,-200.9979683,0.000199,2]
[358421843,1745118426712,-231.37005696,0.000199,2]
[358421844,1745118426734,-268.86746676,0.000199,2]
[358421845,1745118426756,-1072.6240694,0.000199,2]
[358421846,1745118426779,-798.40952329,0.000199,2]
[358421847,1745118426801,-192.1,0.00019951,2]
[358421848,1745118426823,-500.0,0.00019973,2]
[358421849,1745118426844,-502.17224983,0.00019973,2]
[358421850,1745118426866,-12.11388262,0.00019973,2]
[358421851,1745118448251,-1281.13,0.00019847,2]
[358421852,1745118448272,-487.88611738,0.00019973,2]
[358421853,1745118448294,-359.781,0.00019973,2]
[358421854,1745118448318,-163.66695898,0.00019973,2]
[358421855,1745118448341,-896.44694691,0.00019985,2]
[358421856,1745118448362,-8272.91,0.00019986,2]
[358421857,1745118448384,-2641.72,0.00019986,2]
[358421858,1745118448407,-1252.60737672,0.00019986,2]
[358421859,1745118557837,1000.0,0.00048402,30]
[358421860,1745118570602,468.0,0.00048402,30]
[358421861,1745118597391,200.0,0.00019181,2]
[358421864,1745118632248,-153.65,0.00019669,2]
[358421865,1745118632260,-253.44630151,0.00019792,2]
[358421866,1745118632270,-150.0,0.00019812,2]
[358421867,1745118632279,-505.79617025,0.000199,2]
[358421868,1745118632336,-494.20382975,0.000199,2]
[358421869,1745118632345,-150.8030845,0.000199,2]
[358421870,1745118632355,-150.0,0.00019936,2]
[358421871,1745118632364,-293.18536517,0.00019973,2]
[358421872,1745118632374,-300.0,0.00019979,2]
[358421873,1745118632384,-9011.06888316,0.0001998,2]
[358421874,1745118632394,-4708.0355936,0.00019986,2]
[358421943,1745118638673,-2001.38145428,0.00019986,2]
[358421944,1745118638685,-2037.9655754,0.00019986,2]
[358421946,1745118638694,-2323.14,0.00019986,2]
[358421947,1745118638704,-3977.1664856,0.00019986,2]
[358421948,1745118638714,-1586.2982055,0.00019986,2]
[358421949,1745118638723,-23055.1856552,0.00019986,2]
[358421950,1745118638733,-296.11,0.00019986,2]
[358421951,1745118638742,-999.99,0.00019986,2]
[358421952,1745118638753,-9999.99,0.00019986,2]
[358421953,1745118638763,-152.0,0.00019989,2]
[358421954,1745118638771,-3975.0,0.00019989,2]
[358421955,1745118638781,-499.99,0.00019989,2]
[358421956,1745118638790,-3652.21,0.00019989,2]
[358421957,1745118638799,-150.99,0.00019989,2]
[358421958,1745118638808,-303.76,0.0001999,2]
[358421959,1745118638818,-303.76,0.0001999,2]
[358421960,1745118638827,-303.76,0.0001999,2]
[358421961,1745118638836,-303.76,0.0001999,2]
[358421962,1745118638845,-303.76,0.0001999,2]
[358421963,1745118638855,-303.76,0.0001999,2]
[358421964,1745118638864,-283.34061262,0.0001999,2]
[358421965,1745118638874,-303.76,0.0001999,2]
[358421966,1745118638883,-303.76,0.0001999,2]
[358421967,1745118638892,-303.76,0.0001999,2]
[358421968,1745118638902,-303.76,0.0001999,2]
[358421969,1745118638912,-2839.77,0.00019999,2]
[358421970,1745118638922,-434.64,0.00019999,2]
[358421971,1745118638931,-394.75573387,0.00019999,2]
[358421972,1745118638940,-500.0,0.00019999,2]
[358421973,1745118638949,-500.0,0.00019999,2]
[358421974,1745118638959,-672.90622012,0.00019999,2]
[358421975,1745118638968,-500.0,0.00019999,2]
[358421976,1745118638977,-520.0,0.0002,2]
[358421977,1745118638987,-477.07887751,0.0002,2]
[358421978,1745118638996,-254189.70471052,0.0002,2]
[358421979,1745118639114,-3630997.48877714,0.0002,2]
[358421980,1745118639127,-340569.66230341,0.0002,2]
[358421995,1745118646331,-500594.38338874,0.0002,2]
[358422001,1745118738826,-300.0,0.00019899,2]
[358422002,1745118738847,-14471.6537,0.000199,2]
[358422003,1745118738869,-150.8030845,0.000199,2]
[358422004,1745118738891,-4923.2899948,0.00019986,2]
[358422005,1745118738914,-500.0,0.00019999,2]
[358422006,1745118739092,-290654.2532207,0.0002,2]
[358422007,1745118749658,150.0,0.00041095,120]
[358422008,1745118749902,150.0,0.00042465,120]
[358422009,1745118750633,150.0,0.00043835,120]
[358422010,1745118753026,215.868,0.0003969,55]
[358422011,1745118782721,150.0,0.00041095,120]
[358422012,1745118782964,150.0,0.00042465,120]
[358422013,1745118798035,-167.521695,0.000196,2]
[358422014,1745118798056,-185.93522903,0.000199,2]
[358422015,1745118798077,-150.8030845,0.000199,2]
[358422016,1745118798098,-500.0,0.00019999,2]
[358422017,1745118798120,-721495.73999147,0.0002,2]
[358422018,1745118853363,-374.19,0.00019524,2]
[358422019,1745118853385,-250.0,0.0001953,2]
[358422020,1745118853411,-379462.47024552,0.0002,2]
[358422021,1745118853432,-71674.59433557,0.0002,2]
[358422022,1745118853452,-300.85702037,0.0002,2]
[358422023,1745118853474,-1480.74128289,0.0002,2]
[358422024,1745118853494,-1804.6,0.0002,2]
[358422025,1745118853516,-134152.54711565,0.0002,2]
[358422026,1745118905822,-150.0,0.00019541,2]
[358422027,1745118905844,-150.8030845,0.000199,2]
[358422028,1745118905865,-1528.3542701,0.00019986,2]
[358422029,1745118905887,-300.0,0.00019999,2]
[358422030,1745118905908,-300.0,0.00019999,2]
[358422031,1745118905930,-705570.8426454,0.0002,2]
[358422032,1745118933700,1008.0,0.00048402,30]
[358422033,1745118962465,-150.0,0.00019541,2]
[358422034,1745118962487,-21938.286535,0.00019986,2]
[358422035,1745118962508,-147911.713465,0.0002,2]
[358422036,1745119016801,-1326.37,0.00019669,2]
[358422037,1745119016822,-8284.6553028,0.00019986,2]
[358422038,1745119016845,-80188.9746972,0.0002,2]
[358422039,1745119153722,1221.28,0.00017689,2]
[358422040,1745119169678,150.0,0.00019572,7]
[358422041,1745119189617,214.75,0.00043835,30]
[358422042,1745119304252,1000.0,0.00019399,2]
[358422043,1745119353819,172.695,0.000425,64]
[358422044,1745119410716,23900.0,0.00019399,2]
[358422045,1745119430117,450.0,0.00017,2]
[358422046,1745119431178,500.0,0.00019,2]
[358422047,1745119461593,981.34,0.00019432,2]
[358422051,1745119636273,3032.1,0.00019389,2]
[358422052,1745119640124,-3511.54,0.00019455,2]
[358422053,1745119640145,-250.0,0.00019516,2]
[358422054,1745119640169,-7621.74395006,0.000199,2]
[358422055,1745119640190,-1221.28,0.00019952,2]
[358422056,1745119640211,-156.20860496,0.0001997,2]
[358422057,1745119640232,-3188.4468072,0.00019986,2]
[358422058,1745119640253,-616.9114136,0.00019986,2]
[358422059,1745119640275,-264.3830343,0.00019986,2]
[358422060,1745119640296,-933.26894761,0.00019986,2]
[358422066,1745119832221,-818.76596324,0.00019458,2]
[358422069,1745119832279,-3897.77403676,0.00019458,2]
[358422070,1745119832289,-221.09129443,0.000199,2]
[358422071,1745119832299,-715.08271294,0.000199,2]
[358422072,1745119832309,-458.39970802,0.000199,2]
[358422073,1745119832318,-250.0,0.00019933,2]
[358422074,1745119832328,-6100.00994219,0.00019986,2]
[358422075,1745119832339,-2475.883476,0.00019986,2]
[358422076,1745119832356,-369.23958396,0.00019986,2]
[358422077,1745119832421,-132.58414597,0.00019986,2]
[358422078,1745119832448,-935.90503887,0.00019986,2]
[358422079,1745119832457,-2793.9905275,0.00019986,2]
[358422080,1745119832467,-303.76,0.0001999,2]
[358422081,1745119832476,-303.76,0.0001999,2]
[358422082,1745119832486,-303.76,0.0001999,2]
[358422083,1745119832495,-303.76,0.0001999,2]
[358422084,1745119832504,-75.99443363,0.0001999,2]
[358422085,1745119832558,-1885.935,0.0001999,2]
[358422086,1745119832575,-630.24830038,0.0001999,2]
[358422088,1745119838353,-1382.82226599,0.0001999,2]
[358422089,1745119838363,-303.76,0.0001999,2]
[358422090,1745119838372,-303.76,0.0001999,2]
[358422091,1745119838381,-83.75871066,0.0001999,2]
[358422092,1745119838404,-220.00128934,0.0001999,2]
[358422093,1745119838413,-303.76,0.0001999,2]
[358422094,1745119838423,-303.76,0.0001999,2]
[358422095,1745119838432,-303.76,0.0001999,2]
[358422096,1745119838441,-283.34061262,0.0001999,2]
[358422097,1745119838451,-152.0,0.0001999,2]
[358422098,1745119838459,-27.48712139,0.00019999,2]
[358422099,1745119838471,-367.26861248,0.00019999,2]
[358422100,1745119838480,-289.40138752,0.00019999,2]
[358422101,1745119838649,-210.59861248,0.00019999,2]
[358422102,1745119838658,-672.90622012,0.00019999,2]
[358422103,1745119838667,-500.0,0.00019999,2]
[358422104,1745119838677,-523.0,0.0002,2]
[358422105,1745119838687,-67.27792612,0.0002,2]
[358422106,1745119838884,-409.80095139,0.0002,2]
[358422107,1745119838894,-254189.70471052,0.0002,2]
[358422108,1745119838903,-3573.2590653,0.0002,2]
[358422109,1745119838912,-3573.2590653,0.0002,2]
[358422110,1745119838922,-151.07990786,0.0002,2]
[358422111,1745119838931,-150.0,0.0002,2]
[358422112,1745119838941,-161.63712,0.0002,2]
[358422113,1745119838950,-384.0,0.0002,2]
[358422114,1745119838960,-200.0,0.0002,2]
[358422115,1745119838968,-172.695,0.0002,2]